fUSD/lending_fUSD_20240712
["ID","MTS","AMOUNT","RATE_DAILY","PERIOD"]
[331802634,1720765978619,-1173.86,0.00014904,2]
[331802635,1720765978630,-714.93,0.00014904,2]
[331802636,1720765978641,-500.0,0.00014904,2]
[331802637,1720765978652,-889.91,0.00014904,2]
[331802638,1720765978661,-500.0,0.00014904,2]
[331802639,1720765978671,-797.27,0.00014904,2]
[331802640,1720765978681,-508.63,0.00014904,2]
[331802641,1720765978691,-183.91768757,0.00014904,2]
[331802642,1720765978702,-512.8,0.00014904,2]
[331802643,1720765978712,-1002.89,0.00014904,2]
[331802644,1720765978722,-390.31592945,0.00014904,2]
[331802645,1720765978732,-905.0,0.00014904,2]
[331802646,1720765978742,-504.61,0.00014904,2]
[331802647,1720765978756,-549.39156789,0.00014904,2]
[331802648,1720765978766,-998.09,0.00014904,2]
[331802649,1720765978775,-1181.8,0.00014904,2]
[331802650,1720765978785,-1692.88,0.00014904,2]
[331802651,1720765978795,-806.67,0.00014904,2]
[331802652,1720765978804,-1115.55,0.00014904,2]
[331802653,1720765978814,-1111.86,0.00014904,2]
[331802654,1720765978824,-1152.37,0.00014904,2]
[331802655,1720765978835,-1099.21,0.00014904,2]
[331802656,1720765978845,-413.92368128,0.00014904,2]
[331802657,1720765978856,-958.58,0.00014904,2]
[331802658,1720765978867,-1435.54,0.00014904,2]
[331802659,1720765978877,-933.39,0.00014904,2]
[331802660,1720765978888,-885.22,0.00014904,2]
[331802661,1720765978898,-525.55,0.00014904,2]
[331802662,1720765978909,-578.47,0.00014904,2]
[331802663,1720765978920,-585.1,0.00014904,2]
[331802664,1720765978931,-768.43,0.00014904,2]
[331802665,1720765978941,-500.66,0.00014904,2]
[331802666,1720765978952,-1131.03,0.00014904,2]
[331802667,1720765978962,-1387.16,0.00014904,2]
[331802668,1720765978972,-769.71,0.00014904,2]
[331802669,1720765978982,-929.61,0.00014904,2]
[331802670,1720765978992,-1195.55,0.00014904,2]
[331802671,1720765979002,-1164.92,0.00014904,2]
[331802672,1720765979013,-592.67,0.00014904,2]
[331802673,1720765979023,-832.05,0.00014904,2]
[331802674,1720765979034,-1157.39,0.00014904,2]
[331802675,1720765979044,-965.25,0.00014904,2]
[331802676,1720765979054,-1057.96,0.00014904,2]
[331802677,1720765979064,-500.0,0.00014904,2]
[331802678,1720765979075,-663.73,0.00014904,2]
[331802679,1720765979085,-500.0,0.00014904,2]
[331802680,1720765979096,-996.83,0.00014904,2]
[331802681,1720765979106,-778.42,0.00014904,2]
[331802682,1720765979117,-500.94,0.00014904,2]
[331802683,1720765979127,-1011.24,0.00014904,2]
[331802684,1720765979138,-724.27,0.00014904,2]
[331802685,1720765979148,-948.7,0.00014904,2]
[331802686,1720765979157,-1338.17,0.00014904,2]
[331802687,1720765979167,-894.67,0.00014904,2]
[331802688,1720765979177,-691.16,0.00014904,2]
[331802689,1720765979187,-706.91,0.00014904,2]
[331802690,1720765979196,-1648.59,0.00014904,2]
[331802691,1720765979207,-579.34,0.00014904,2]
[331802692,1720765979217,-534.75,0.00014904,2]
[331802693,1720765979227,-6673.84,0.00014904,2]
[331802694,1720765979237,-791.66,0.00014904,2]
[331802695,1720765979247,-868.6,0.00014904,2]
[331802696,1720765979256,-503.87,0.00014904,2]
[331802697,1720765979267,-1463.05,0.00014904,2]
[331802698,1720765979277,-500.0,0.00014904,2]
[331802699,1720765979288,-1711.11,0.00014904,2]
[331802700,1720765979298,-940.12,0.00014904,2]
[331802701,1720765979309,-1103.87,0.00014904,2]
[331802702,1720765979319,-906.68,0.00014904,2]
[331802703,1720765979330,-838.82,0.00014904,2]
[331802704,1720765979341,-774.99,0.00014904,2]
[331802705,1720765979353,-1003.46,0.00014904,2]
[331802706,1720765979367,-776.49,0.00014904,2]
[331802707,1720765979376,-715.19,0.00014904,2]
[331802708,1720765979386,-811.17,0.00014904,2]
[331802709,1720765979395,-1169.16,0.00014904,2]
[331802710,1720765979406,-2671.99,0.00014904,2]
[331802711,1720765979417,-804.64,0.00014904,2]
[331802712,1720765979427,-516.06,0.00014904,2]
[331802713,1720765979438,-1567.42,0.00014904,2]
[331802714,1720765979449,-1123.97,0.00014904,2]
[331802715,1720765979458,-682.47,0.00014904,2]
[331802716,1720765979469,-1159.17,0.00014904,2]
[331802717,1720765979479,-7796.51,0.00014904,2]
[331802718,1720765979489,-884.1,0.00014904,2]
[331802719,1720765979499,-3427.86,0.00014904,2]
[331802720,1720765979509,-761.42,0.00014904,2]
[331802721,1720765979521,-2349.61,0.00014904,2]
[331802722,1720765979534,-2824.19,0.00014904,2]
[331802723,1720765979546,-1413.14,0.00014904,2]
[331802724,1720765979557,-544.06,0.00014904,2]
[331802725,1720765979569,-746.16,0.00014904,2]
[331802726,1720765979579,-568.05,0.00014904,2]
[331802727,1720765979589,-1225.06,0.00014904,2]
[331802728,1720765979599,-1040.64,0.00014904,2]
[331802729,1720765979610,-502.01,0.00014904,2]
[331802730,1720765979620,-945.48,0.00014904,2]
[331802731,1720765979629,-1864.03,0.00014904,2]
[331802732,1720765979639,-3139.48,0.00014904,2]
[331802733,1720765979649,-782.62,0.00014904,2]
[331802734,1720765979659,-967.92,0.00014904,2]
[331802735,1720765979668,-817.59,0.00014904,2]
[331802736,1720765979678,-760.77,0.00014904,2]
[331802737,1720765979688,-672.02,0.00014904,2]
[331802738,1720765979697,-172.76929198,0.00014904,2]
[331802739,1720765979707,-1369.87,0.00014904,2]
[331802740,1720765979716,-927.94,0.00014904,2]
[331802741,1720765979726,-503.52,0.00014904,2]
[331802742,1720765979737,-510.11,0.00014904,2]
[331802743,1720765979748,-883.29,0.00014904,2]
[331802744,1720765979761,-703.12,0.00014904,2]
[331802745,1720765979771,-913.43,0.00014904,2]
[331802746,1720765979780,-1249.82,0.00014904,2]
[331802747,1720765979790,-698.85,0.00014904,2]
[331802748,1720765979799,-513.61,0.00014904,2]
[331802749,1720765979810,-3390.01,0.00014904,2]
[331802750,1720765979820,-977.7,0.00014904,2]
[331802751,1720765979830,-641.99,0.00014904,2]
[331802752,1720765979840,-522.91,0.00014904,2]
[331802753,1720765979851,-760.44,0.00014904,2]
[331802754,1720765979862,-853.13,0.00014904,2]
[331802755,1720765979871,-534.54,0.00014904,2]
[331802756,1720765979882,-150.0,0.00014905,2]
[331802757,1720765979892,-212.07274984,0.00014917,2]
[331802758,1720765979902,-150.0,0.00014927,2]
[331802759,1720765979913,-152.0,0.00014928,4]
[331802760,1720765979923,-150.0,0.00014933,2]
[331802761,1720765979932,-212.07274984,0.00014933,2]
[331802762,1720765979943,-212.07274984,0.0001495,2]
[331802763,1720765979954,-169.37221387,0.00014958,2]
[331802764,1720765979963,-600.14782456,0.00014958,2]
[331802765,1720765979973,-533.48629357,0.00014958,2]
[331802766,1720765979983,-547.45330676,0.00014958,2]
[331802767,1720765979992,-528.16503892,0.00014958,2]
[331802768,1720765980002,-829.80603803,0.00014958,2]
[331802769,1720765980012,-678.51846943,0.00014958,2]
[331802770,1720765980022,-1078.1639794,0.00014958,2]
[331802771,1720765980031,-151.87070568,0.00014958,2]
[331802772,1720765980042,-600.13522925,0.00014958,2]
[331802773,1720765980052,-573.03,0.00014958,2]
[331802774,1720765980063,-542.1,0.00014958,2]
[331802775,1720765980073,-561.22375424,0.00014958,2]
[331802776,1720765980084,-526.54459254,0.00014958,2]
[331802777,1720765980094,-658.44828975,0.00014958,2]
[331802778,1720765980104,-597.89742653,0.00014958,2]
[331802779,1720765980114,-665.44623197,0.00014958,2]
[331802780,1720765980124,-879.73411172,0.00014958,2]
[331802781,1720765980134,-1042.92,0.00014958,2]
[331802782,1720765980145,-488.99775481,0.00014958,2]
[331802783,1720765980450,-801.97858663,0.00014958,2]
[331802784,1720765980462,-676.87997193,0.00014958,2]
[331802785,1720765980471,-576.54734107,0.00014958,2]
[331802786,1720765980481,-679.93370088,0.00014958,2]
[331802787,1720765980491,-700.02496899,0.00014958,2]
[331802788,1720765980502,-902.73432156,0.00014958,2]
[331802789,1720765980512,-424.94654677,0.00014958,2]
[331802790,1720765980526,-969.79281136,0.00014958,2]
[331802791,1720765980536,-1386.93645889,0.00014958,2]
[331802792,1720765980546,-833.00802114,0.00014958,2]
[331802793,1720765980555,-1142.60289524,0.00014958,2]
[331802794,1720765980566,-584.26763807,0.00014958,2]
[331802795,1720765980576,-678.163446,0.00014958,2]
[331802796,1720765980586,-965.61918039,0.00014958,2]
[331802797,1720765980598,-980.93,0.00014958,2]
[331802798,1720765980610,-625.24323738,0.00014958,2]
[331802799,1720765980619,-1043.82766789,0.00014958,2]
[331802800,1720765980629,-286.23414703,0.00014958,2]
[331802801,1720765980639,-663.1196152,0.00014958,2]
[331802802,1720765980648,-1311.88572948,0.00014958,2]
[331802803,1720765980658,-1064.84,0.00014958,2]
[331802804,1720765980668,-1453.16622692,0.00014958,2]
[331802805,1720765980678,-625.53084009,0.00014958,2]
[331802806,1720765980688,-651.86131801,0.00014958,2]
[331802807,1720765980698,-1301.38221878,0.00014958,2]
[331802808,1720765980707,-618.70144642,0.00014958,2]
[331802809,1720765980717,-1182.86387528,0.00014958,2]
[331802810,1720765980727,-871.28843693,0.00014958,2]
[331802811,1720765980737,-886.70984609,0.00014958,2]
[331802812,1720765980747,-1085.55985718,0.00014958,2]
[331802813,1720765980757,-831.0257548,0.00014958,2]
[331802814,1720765980769,-896.6247235,0.00014958,2]
[331802815,1720765980779,-674.26992974,0.00014958,2]
[331802816,1720765980791,-1895.23975639,0.00014958,2]
[331802817,1720765980801,-1173.03254087,0.00014958,2]
[331802818,1720765980811,-1661.1158602,0.00014958,2]
[331802819,1720765980821,-644.67844491,0.00014958,2]
[331802820,1720765980830,-1467.48941037,0.00014958,2]
[331802821,1720765980840,-981.51,0.00014958,2]
[331802822,1720765980850,-1112.54971349,0.00014958,2]
[331802823,1720765980863,-721.73,0.00014958,2]
[331802824,1720765980874,-773.12684928,0.00014958,2]
[331802825,1720765980883,-750.3,0.00014958,2]
[331802826,1720765980893,-617.12697988,0.00014958,2]
[331802827,1720765980903,-1485.71532851,0.00014958,2]
[331802828,1720765980913,-645.84801274,0.00014958,2]
[331802829,1720765980924,-609.44747583,0.00014958,2]
[331802830,1720765980933,-1043.16823566,0.00014958,2]
[331802831,1720765980943,-578.04186996,0.00014958,2]
[331802832,1720765980953,-572.96504366,0.00014958,2]
[331802833,1720765980963,-1001.27663318,0.00014958,2]
[331802834,1720765980972,-826.32174554,0.00014958,2]
[331802835,1720765980981,-863.73010696,0.00014958,2]
[331802836,1720765980991,-978.8669489,0.00014958,2]
[331802837,1720765981000,-927.19034178,0.00014958,2]
[331802838,1720765981010,-1033.49213497,0.00014958,2]
[331802839,1720765981021,-585.12535733,0.00014958,2]
[331802840,1720765981030,-924.37008287,0.00014958,2]
[331802841,1720765981040,-1551.06707252,0.00014958,2]
[331802842,1720765981050,-936.85007278,0.00014958,2]
[331802843,1720765981060,-1266.77514629,0.00014958,2]
[331802844,1720765981070,-583.36580928,0.00014958,2]
[331802845,1720765981080,-1145.76565768,0.00014958,2]
[331802846,1720765981089,-629.11258745,0.00014958,2]
[331802847,1720765981099,-1072.86463509,0.00014958,2]
[331802848,1720765981109,-882.67,0.00014958,2]
[331802849,1720765981119,-908.25916521,0.00014958,2]
[331802850,1720765981129,-617.62037868,0.00014958,2]
[331802851,1720765981139,-597.85252337,0.00014958,2]
[331802852,1720765981148,-1413.16,0.00014958,2]
[331802853,1720765981158,-684.86455552,0.00014958,2]
[331802854,1720765981168,-1269.45474986,0.00014958,2]
[331802855,1720765981178,-1009.60528032,0.00014958,2]
[331802856,1720765981188,-820.47092432,0.00014958,2]
[331802857,1720765981197,-570.33057184,0.00014958,2]
[331802858,1720765981207,-751.85,0.00014958,2]
[331802859,1720765981216,-1287.86485199,0.00014958,2]
[331802860,1720765981225,-922.81222664,0.00014958,2]
[331802861,1720765981234,-1086.62783716,0.00014958,2]
[331802862,1720765981730,-284.24077241,0.00013,13]
[331802863,1720765981757,-715.75922759,0.00013,13]
[331802864,1720765981768,-365.59291965,0.00013385,2]
[331802865,1720765981777,-500.0,0.00013698,2]
[331802866,1720765981787,-543.81,0.00013698,2]
[331802867,1720765981796,-218.20544124,0.00013698,2]
[331802868,1720765981808,-341.46455876,0.00013698,2]
[331802869,1720765981817,-500.0,0.00013698,2]
[331802870,1720765981827,-500.0,0.00013698,2]
[331802871,1720765981836,-151.0,0.00013753,2]
[331802872,1720765981846,-500.0,0.00013753,2]
[331802873,1720765981856,-151.0,0.00013753,2]
[331802874,1720765981865,-500.0,0.00013753,2]
[331802875,1720765981875,-500.0,0.00013808,2]
[331802876,1720765981885,-647.09,0.00013808,2]
[331802877,1720765981896,-151.0,0.00013808,2]
[331802878,1720765981907,-151.0,0.00013808,2]
[331802879,1720765981917,-151.0,0.00013808,2]
[331802880,1720765981927,-1308.59,0.00014739,2]
[331802881,1720765981938,-1308.59,0.00014794,2]
[331802882,1720765981948,-1308.59,0.00014849,2]
[331802883,1720765981959,-789.27,0.00014904,2]
[331802884,1720765981968,-1308.59,0.00014904,2]
[331802885,1720765981978,-258.9420981,0.00014958,2]
[331802886,1720765981988,-649.68149921,0.00014958,2]
[331802887,1720765981998,-536.36,0.00014958,2]
[331802888,1720765982008,-896.06644205,0.00014958,2]
[331802889,1720765982018,-566.75,0.00014958,2]
[331802890,1720765982027,-364.50746899,0.00014958,2]
[331802891,1720765982046,-500.0,0.00013698,2]
[331802892,1720765982055,-365.06253101,0.00014958,2]
[331802893,1720765982065,-694.86143328,0.00014958,2]
[331802894,1720765982098,-500.0,0.00013698,2]
[331802895,1720765982108,-442.8,0.00013753,2]
[331802896,1720765982117,-500.0,0.00013808,2]
[331802897,1720765982127,-937.60639456,0.00014958,2]
[331802898,1720765982136,-1661.70038501,0.00014958,2]
[331802899,1720765982146,-1622.69551333,0.00014958,2]
[331802900,1720765982155,-313.90508347,0.00014958,2]
[331802901,1720765986814,500.0,9.102e-05,2]
[331802902,1720765986896,500.0,9.102e-05,2]
[331802903,1720765989884,500.0,9.102e-05,2]
[331802904,1720765991130,500.0,9.102e-05,2]
[331802905,1720766003714,502.780121,0.00025054,120]
[331802906,1720766088589,652.52,0.00010959,2]
[331802907,1720766218415,296.17772441,0.00011199,2]
[331802909,1720766254187,155.3916334,0.00011199,2]
[331802910,1720766283835,339.17,0.00010754,2]
[331802913,1720766452696,255.03,0.00011199,2]
[331802915,1720766530505,2142.78275778,0.00011199,2]
[331802919,1720766796703,330.44,0.00027,120]
[331802920,1720766804456,1016.1189389,0.00025,60]
[331802921,1720766813249,337.48,0.00010664,2]
[331802922,1720766892546,227.32181018,0.00011199,2]
[331802923,1720766926860,155.0,0.00011199,2]
[331802924,1720766934866,155.0,0.00011199,2]
[331802940,1720766974932,150.0,0.00027,120]
[331802941,1720766975036,821.48231335,0.00011199,2]
[331803113,1720767012186,482.87871356,0.00011199,2]
[331803118,1720767032431,-155.68074044,0.00012302,2]
[331803119,1720767032441,-242.49333518,0.00012302,2]
[331803120,1720767032451,-152.95,0.0001247,2]
[331803121,1720767032461,-250.0,0.00012481,2]
[331803122,1720767032470,-1000.0,0.00012503,2]
[331803123,1720767032480,-885.88199289,0.00012568,2]
[331803124,1720767032491,-1402.1353269,0.00012568,2]
[331803125,1720767032503,-3162.224,0.00012568,2]
[331803126,1720767032514,-2321.21868021,0.00012568,2]
[331803127,1720767032524,-300.0,0.00012569,2]
[331803128,1720767032533,-507.45,0.0001257,2]
[331803129,1720767032543,-250.0,0.00012601,2]
[331803130,1720767032552,-203.57,0.00012618,2]
[331803131,1720767032562,-169.75,0.00012652,2]
[331803132,1720767032571,-999.99,0.00012799,2]
[331803133,1720767032581,-1801.29,0.00012799,2]
[331803134,1720767032590,-499.99,0.00012799,2]
[331803135,1720767032600,-1866.7433,0.00012799,2]
[331803136,1720767032609,-260.14,0.00012899,2]
[331803137,1720767032618,-151.72402179,0.00012899,2]
[331803138,1720767032630,-17073.80467821,0.00012899,2]
[331803139,1720767032640,-94174.1376,0.00012899,2]
[331803140,1720767032650,-500.0,0.00012899,2]
[331803141,1720767032659,-337.48,0.00012928,2]
[331803142,1720767032669,-500.0,0.00013,2]
[331803143,1720767032679,-500.0,0.00013,2]
[331803144,1720767032688,-500.0,0.00013,2]
[331803145,1720767032698,-500.0,0.00013,2]
[331803146,1720767032708,-520.29,0.00013,2]
[331803147,1720767032717,-262.92,0.00013,2]
[331803148,1720767032727,-1903.03082168,0.00013128,2]
[331803149,1720767032736,-975.726393,0.00013386,2]
[331803150,1720767032745,-178.625945,0.00013386,2]
[331803151,1720767032755,-552.101194,0.00013386,2]
[331803152,1720767032764,-172.362248,0.00013386,2]
[331803153,1720767032774,-1053.575753,0.00013386,2]
[331803154,1720767032783,-170.29919,0.00013386,2]
[331803155,1720767032793,-187.204548,0.00013386,2]
[331803156,1720767032803,-183.608263,0.00013386,2]
[331803157,1720767032812,-183.113198,0.00013386,2]
[331803158,1720767032821,-273.286825,0.00013386,2]
[331803159,1720767032831,-49354.6198,0.00013474,2]
[331803160,1720767032841,-227.32181018,0.00013516,2]
[331803161,1720767032853,-1073.98697933,0.00013532,2]
[331803162,1720767032864,-522.07482015,0.00013543,2]
[331803163,1720767032873,-302.5722319,0.00013553,2]
[331803168,1720767038516,-551.93625371,0.00013553,2]
[331803170,1720767038528,-121.21790739,0.00013553,2]
[331803172,1720767038538,-552.101194,0.00013553,2]
[331803174,1720767038548,-1053.575753,0.00013553,2]
[331803176,1720767038558,-183.113198,0.00013553,2]
[331803178,1720767038567,-273.286825,0.00013553,2]
[331803180,1720767038577,-152.0044,0.00013561,2]
[331803182,1720767038586,-4812.02116833,0.00013574,2]
[331803184,1720767038598,-1351.04033422,0.00013574,2]
[331803186,1720767038608,-155.0,0.00013574,2]
[331803188,1720767038618,-1127.76075355,0.00013574,2]
[331803190,1720767038627,-186.46711756,0.00013598,2]
[331803192,1720767038637,-323.87427252,0.00013598,2]
[331803194,1720767038647,-1000.0,0.00013598,2]
[331803196,1720767038656,-12577.8517,0.00013598,2]
[331803198,1720767038666,-4330.5022,0.00013598,2]
[331803200,1720767038676,-697.0775,0.00013598,2]
[331803201,1720767038685,-1385.9639,0.00013598,2]
[331803202,1720767038695,-9968.8805,0.00013598,2]
[331803203,1720767038705,-301.3749,0.00013598,2]
[331803204,1720767038715,-229.0206,0.00013598,2]
[331803205,1720767038725,-2793.2759,0.00013598,2]
[331803206,1720767038734,-183.608263,0.00013609,2]
[331803207,1720767038743,-186.46711753,0.00013639,2]
[331803208,1720767038753,-178.45990259,0.00013653,2]
[331803209,1720767038763,-182.34687994,0.00013653,2]
[331803210,1720767038773,-186.46711753,0.00013681,2]
[331803211,1720767038783,-188.3014398,0.00013688,2]
[331803212,1720767038792,-500.0,0.00013698,2]
[331803213,1720767038802,-500.0,0.00013698,2]
[331803214,1720767038811,-500.0,0.00013698,2]
[331803215,1720767038821,-500.0,0.00013698,2]
[331803216,1720767038830,-500.0,0.00013698,2]
[331803217,1720767038839,-500.0,0.00013698,2]
[331803218,1720767038850,-284.09906898,0.00013698,2]
[331803219,1720767038863,-500.0,0.00013698,2]
[331803220,1720767038873,-500.0,0.00013698,2]
[331803221,1720767038882,-500.0,0.00013698,2]
[331803222,1720767038892,-500.0,0.00013698,2]
[331803223,1720767038902,-304.46644499,0.00013698,2]
[331803224,1720767038911,-200.0,0.00013698,2]
[331803225,1720767038921,-500.0,0.00013698,2]
[331803226,1720767038933,-500.0,0.00013698,2]
[331803227,1720767038942,-500.0,0.00013698,2]
[331803228,1720767038952,-500.0,0.00013698,2]
[331803229,1720767038962,-500.0,0.00013698,2]
[331803230,1720767038971,-500.0,0.00013698,2]
[331803231,1720767038981,-500.0,0.00013698,2]
[331803232,1720767038990,-500.0,0.00013698,2]
[331803233,1720767038999,-500.0,0.00013698,2]
[331803234,1720767039009,-500.0,0.00013698,2]
[331803235,1720767039019,-500.0,0.00013698,2]
[331803236,1720767039028,-500.0,0.00013698,2]
[331803237,1720767039037,-500.0,0.00013698,2]
[331803238,1720767039046,-504.15045654,0.00013698,2]
[331803239,1720767039241,-500.0,0.00013698,2]
[331803240,1720767039252,-500.0,0.00013698,2]
[331803241,1720767039261,-500.0,0.00013698,2]
[331803242,1720767039271,-500.0,0.00013698,2]
[331803243,1720767039280,-500.0,0.00013698,2]
[331803244,1720767039290,-500.0,0.00013698,2]
[331803245,1720767039299,-500.0,0.00013698,2]
[331803246,1720767039309,-500.0,0.00013698,2]
[331803247,1720767039318,-500.0,0.00013698,2]
[331803248,1720767039328,-573.52,0.00013698,2]
[331803249,1720767039337,-500.0,0.00013698,2]
[331803250,1720767039347,-500.0,0.00013698,2]
[331803251,1720767039357,-500.0,0.00013698,2]
[331803252,1720767039366,-500.0,0.00013698,2]
[331803253,1720767039376,-500.0,0.00013698,2]
[331803254,1720767039385,-500.0,0.00013698,2]
[331803255,1720767039395,-186.25859512,0.00013698,2]
[331803256,1720767039405,-500.0,0.00013698,2]
[331803257,1720767039415,-500.0,0.00013698,2]
[331803258,1720767039424,-500.0,0.00013698,2]
[331803259,1720767039434,-500.0,0.00013698,2]
[331803260,1720767039444,-500.0,0.00013698,2]
[331803261,1720767039454,-544.34,0.00013698,2]
[331803262,1720767039463,-500.0,0.00013698,2]
[331803263,1720767039473,-536.87,0.00013698,2]
[331803264,1720767039482,-500.0,0.00013698,2]
[331803265,1720767039492,-827.26,0.00013698,2]
[331803266,1720767039501,-500.0,0.00013698,2]
[331803267,1720767039511,-500.0,0.00013698,2]
[331803268,1720767039520,-466.09158947,0.00013698,2]
[331803269,1720767039529,-500.0,0.00013698,2]
[331803270,1720767039539,-500.0,0.00013698,2]
[331803271,1720767039548,-500.0,0.00013698,2]
[331803272,1720767039558,-754.46,0.00013698,2]
[331803273,1720767039567,-500.0,0.00013698,2]
[331803274,1720767039577,-255.8270806,0.00013698,2]
[331803275,1720767039588,-633.7,0.00013698,2]
[331803276,1720767039598,-500.0,0.00013698,2]
[331803277,1720767039607,-500.0,0.00013698,2]
[331803278,1720767039617,-500.0,0.00013698,2]
[331803279,1720767039626,-500.0,0.00013698,2]
[331803280,1720767039635,-500.0,0.00013698,2]
[331803281,1720767039646,-500.0,0.00013698,2]
[331803282,1720767039656,-500.0,0.00013698,2]
[331803283,1720767039665,-500.0,0.00013698,2]
[331803284,1720767039675,-500.0,0.00013698,2]
[331803285,1720767039684,-489.15673472,0.00013698,2]
[331803286,1720767039693,-500.0,0.00013698,2]
[331803287,1720767039703,-500.0,0.00013698,2]
[331803288,1720767039712,-500.0,0.00013698,2]
[331803289,1720767039721,-500.0,0.00013698,2]
[331803290,1720767039731,-159.18,0.00013698,2]
[331803291,1720767039740,-500.0,0.00013698,2]
[331803292,1720767039749,-601.00225761,0.00013698,2]
[331803293,1720767039758,-548.82,0.00013698,2]
[331803294,1720767039767,-500.0,0.00013698,2]
[331803295,1720767039777,-500.0,0.00013698,2]
[331803296,1720767039786,-579.9,0.00013698,2]
[331803297,1720767039795,-500.0,0.00013698,2]
[331803298,1720767039805,-604.41,0.00013698,2]
[331803299,1720767039814,-500.0,0.00013698,2]
[331803300,1720767039823,-500.0,0.00013698,2]
[331803301,1720767039832,-500.0,0.00013698,2]
[331803302,1720767039842,-500.0,0.00013698,2]
[331803303,1720767039852,-500.0,0.00013698,2]
[331803304,1720767039865,-500.0,0.00013698,2]
[331803305,1720767039874,-500.0,0.00013698,2]
[331803306,1720767039884,-500.0,0.00013698,2]
[331803307,1720767039895,-500.0,0.00013698,2]
[331803308,1720767039905,-500.0,0.00013698,2]
[331803309,1720767039914,-500.0,0.00013698,2]
[331803310,1720767039924,-500.0,0.00013698,2]
[331803311,1720767039934,-500.0,0.00013698,2]
[331803312,1720767039944,-581.79,0.00013698,2]
[331803313,1720767039954,-500.0,0.00013698,2]
[331803314,1720767039963,-641.73,0.00013698,2]
[331803315,1720767039973,-500.0,0.00013698,2]
[331803316,1720767039983,-500.0,0.00013698,2]
[331803317,1720767039992,-500.0,0.00013698,2]
[331803318,1720767040002,-500.0,0.00013698,2]
[331803319,1720767040011,-500.0,0.00013698,2]
[331803320,1720767040020,-500.0,0.00013698,2]
[331803321,1720767040029,-500.0,0.00013698,2]
[331803322,1720767040039,-500.0,0.00013698,2]
[331803323,1720767040048,-500.0,0.00013698,2]
[331803325,1720767040057,-500.0,0.00013698,2]
[331803327,1720767040065,-500.0,0.00013698,2]
[331803328,1720767040075,-500.0,0.00013698,2]
[331803329,1720767040084,-500.0,0.00013698,2]
[331803330,1720767040093,-500.0,0.00013698,2]
[331803331,1720767040102,-500.0,0.00013698,2]
[331803332,1720767040111,-500.0,0.00013698,2]
[331803333,1720767040120,-455.87763929,0.00013698,2]
[331803334,1720767040129,-235.82963628,0.00013698,2]
[331803335,1720767040138,-500.0,0.00013698,2]
[331803336,1720767040148,-500.0,0.00013698,2]
[331803337,1720767040157,-500.0,0.00013698,2]
[331803338,1720767040167,-500.0,0.00013698,2]
[331803339,1720767040176,-616.15567412,0.00013698,2]
[331803340,1720767040186,-500.0,0.00013698,2]
[331803341,1720767040195,-500.0,0.00013698,2]
[331803342,1720767040204,-500.0,0.00013698,2]
[331803343,1720767040214,-548.78,0.00013698,2]
[331803344,1720767040223,-500.0,0.00013698,2]
[331803345,1720767040232,-500.0,0.00013698,2]
[331803346,1720767040242,-500.0,0.00013698,2]
[331803347,1720767040251,-500.0,0.00013698,2]
[331803348,1720767040261,-500.0,0.00013698,2]
[331803349,1720767040271,-500.0,0.00013698,2]
[331803350,1720767040280,-500.0,0.00013698,2]
[331803351,1720767040290,-500.0,0.00013698,2]
[331803352,1720767040299,-500.0,0.00013698,2]